[Event "Late-Titled-Tuesday-Blitz-August-29-2023"]
[Site "Chess.com"]
[Date "2023.08.29"]
[Round "8"]
[White "bazar-wokzal"]
[Black "nitpicker"]
[Result "1-0"]
[WhiteElo "2547"]
[BlackElo "2293"]
[TimeControl "180+1"]
[EndTime "15:25:19 PDT"]
[Termination "bazar-wokzal won by resignation"]

1. e4 {[%clk 0:03:00.9]} 1... c5 {[%clk 0:02:58.9]} 2. c3 {[%clk 0:03:00.5]}
2... g6 {[%clk 0:02:59.3]} 3. d4 {[%clk 0:03:00.2]} 3... cxd4 {[%clk 0:02:59.8]}
4. cxd4 {[%clk 0:03:00.2]} 4... d5 {[%clk 0:03:00.7]} 5. e5 {[%clk 0:03:00.4]}
5... Nc6 {[%clk 0:02:59.2]} 6. Nc3 {[%clk 0:02:59.9]} 6... Bg7 {[%clk
0:02:56.9]} 7. Bf4 {[%clk 0:02:59.6]} 7... f6 {[%clk 0:02:51.2]} 8. Nf3 {[%clk
0:02:49.8]} 8... Nh6 {[%clk 0:02:45.7]} 9. Qd2 {[%clk 0:02:49.2]} 9... Nf7
{[%clk 0:02:39]} 10. Bb5 {[%clk 0:02:47.7]} 10... O-O {[%clk 0:02:35.7]} 11.
Bxc6 {[%clk 0:02:44.3]} 11... bxc6 {[%clk 0:02:35.4]} 12. O-O {[%clk 0:02:44.7]}
12... fxe5 {[%clk 0:02:29.8]} 13. dxe5 {[%clk 0:02:42.1]} 13... Bg4 {[%clk
0:02:27]} 14. Nd4 {[%clk 0:02:41.5]} 14... c5 {[%clk 0:02:01.8]} 15. Nc6 {[%clk
0:02:38.2]} 15... Qd7 {[%clk 0:01:29.2]} 16. Nxd5 {[%clk 0:02:35.5]} 16... Kh8
{[%clk 0:01:21.7]} 17. Ndxe7 {[%clk 0:02:27.5]} 17... Qxd2 {[%clk 0:01:12.5]}
18. Bxd2 {[%clk 0:02:27.7]} 18... Nxe5 {[%clk 0:01:12.6]} 19. Bc3 {[%clk
0:02:23.6]} 19... Nxc6 {[%clk 0:00:59.6]} 20. Bxg7+ {[%clk 0:02:19.9]} 20...
Kxg7 {[%clk 0:01:00.5]} 21. Nxc6 {[%clk 0:02:20.2]} 21... Rf6 {[%clk 0:00:36]}
22. Ne5 {[%clk 0:02:19.4]} 22... Be2 {[%clk 0:00:31.1]} 23. Rfe1 {[%clk
0:02:19.2]} 23... Ba6 {[%clk 0:00:28.6]} 24. Rac1 {[%clk 0:02:18.8]} 24... Raf8
{[%clk 0:00:19.4]} 25. Nd7 {[%clk 0:02:17.3]} 25... Rxf2 {[%clk 0:00:16.6]} 26.
Nxf8 {[%clk 0:02:17]} 26... Rxf8 {[%clk 0:00:17.5]} 27. Rxc5 {[%clk 0:02:15.9]}
27... Rf7 {[%clk 0:00:18.2]} 28. h3 {[%clk 0:02:14.1]} 28... Bb7 {[%clk
0:00:18.4]} 29. Rec1 {[%clk 0:02:11]} 29... Be4 {[%clk 0:00:11]} 30. Rc7 {[%clk
0:02:10.3]} 30... a5 {[%clk 0:00:08.6]} 31. Rxf7+ {[%clk 0:02:09.8]} 31... Kxf7
{[%clk 0:00:09.3]} 32. Rc7+ {[%clk 0:02:07.2]} 32... Kf6 {[%clk 0:00:08.9]} 33.
Rxh7 {[%clk 0:02:06.9]} 33... g5 {[%clk 0:00:09.8]} 34. Ra7 {[%clk 0:02:06.1]}
1-0

[Event "Late-Titled-Tuesday-Blitz-August-29-2023"]
[Site "Chess.com"]
[Date "2023.08.29"]
[Round "8"]
[White "YEIKO2017"]
[Black "rochaaaaaaaaaa"]
[Result "1-0"]
[WhiteElo "2465"]
[BlackElo "2243"]
[TimeControl "180+1"]
[EndTime "15:25:26 PDT"]
[Termination "YEIKO2017 won by resignation"]

1. e4 {[%clk 0:02:55.5]} 1... c6 {[%clk 0:02:58.5]} 2. Nc3 {[%clk 0:02:54.7]}
2... d5 {[%clk 0:02:58.8]} 3. Nf3 {[%clk 0:02:55.2]} 3... dxe4 {[%clk
0:02:58.8]} 4. Nxe4 {[%clk 0:02:54.9]} 4... Nf6 {[%clk 0:02:59.3]} 5. Qe2 {[%clk
0:02:55.2]} 5... Na6 {[%clk 0:02:58.9]} 6. d4 {[%clk 0:02:48.1]} 6... Nxe4
{[%clk 0:02:58.1]} 7. Qxe4 {[%clk 0:02:47.5]} 7... Qd5 {[%clk 0:02:58.8]} 8.
Qxd5 {[%clk 0:02:45.4]} 8... cxd5 {[%clk 0:02:59.7]} 9. Bb5+ {[%clk 0:02:45.1]}
9... Bd7 {[%clk 0:02:59.1]} 10. Bxd7+ {[%clk 0:02:44.5]} 10... Kxd7 {[%clk
0:02:59.2]} 11. c3 {[%clk 0:02:41.4]} 11... f6 {[%clk 0:02:58.9]} 12. h4 {[%clk
0:02:35.6]} 12... h5 {[%clk 0:02:56]} 13. Bf4 {[%clk 0:02:28.8]} 13... e6 {[%clk
0:02:54.9]} 14. O-O-O {[%clk 0:02:28.5]} 14... Bd6 {[%clk 0:02:53.7]} 15. g3
{[%clk 0:02:24]} 15... Nc7 {[%clk 0:02:43.6]} 16. Rde1 {[%clk 0:02:08.9]} 16...
Rac8 {[%clk 0:02:41.2]} 17. Kd2 {[%clk 0:02:08.1]} 17... Nb5 {[%clk 0:02:33.3]}
18. Kd3 {[%clk 0:02:03.9]} 18... Rhg8 {[%clk 0:02:24.3]} 19. a4 {[%clk
0:01:54.2]} 19... Nc7 {[%clk 0:02:22.2]} 20. Re2 {[%clk 0:01:44.1]} 20... Rce8
{[%clk 0:02:18.6]} 21. Rhe1 {[%clk 0:01:41.8]} 21... Re7 {[%clk 0:02:18]} 22. b3
{[%clk 0:01:41.1]} 22... Ne8 {[%clk 0:02:16.2]} 23. c4 {[%clk 0:01:38.6]} 23...
dxc4+ {[%clk 0:02:13.4]} 24. bxc4 {[%clk 0:01:39.5]} 24... Bxf4 {[%clk
0:02:13.4]} 25. gxf4 {[%clk 0:01:40.3]} 25... Nd6 {[%clk 0:02:13.9]} 26. d5
{[%clk 0:01:36.6]} 26... Rge8 {[%clk 0:02:13.5]} 27. c5 {[%clk 0:01:31.9]} 27...
Nf5 {[%clk 0:02:13.9]} 28. d6 {[%clk 0:01:27.1]} 28... Rf7 {[%clk 0:02:13.9]}
29. Rb2 {[%clk 0:01:21.8]} 29... Kc6 {[%clk 0:02:09.1]} 30. Reb1 {[%clk
0:01:13.1]} 30... Kxc5 {[%clk 0:01:48.3]} 31. Rxb7 {[%clk 0:01:12.2]} 31... Nxd6
{[%clk 0:01:37.1]} 32. Rxf7 {[%clk 0:00:59.5]} 32... Nxf7 {[%clk 0:01:38]} 33.
Rb7 {[%clk 0:00:58.1]} 33... Nd6 {[%clk 0:01:36.8]} 34. Rxg7 {[%clk 0:00:54.4]}
34... Rb8 {[%clk 0:01:33.4]} 35. Nd4 {[%clk 0:00:52.8]} 35... Kd5 {[%clk
0:01:28]} 36. Rxa7 {[%clk 0:00:52.6]} 36... Rb4 {[%clk 0:01:27.1]} 37. Ra5+
{[%clk 0:00:52]} 1-0

[Event "Late-Titled-Tuesday-Blitz-August-29-2023"]
[Site "Chess.com"]
[Date "2023.08.29"]
[Round "8"]
[White "b_6"]
[Black "Rutricks"]
[Result "0-1"]
[WhiteElo "2477"]
[BlackElo "2628"]
[TimeControl "180+1"]
[EndTime "15:25:35 PDT"]
[Termination "Rutricks won by resignation"]

1. Nf3 {[%clk 0:03:00.9]} 1... g6 {[%clk 0:03:00.9]} 2. g3 {[%clk 0:03:00.7]}
2... Bg7 {[%clk 0:02:57.4]} 3. d4 {[%clk 0:03:00.4]} 3... Nf6 {[%clk 0:02:58.3]}
4. Bg2 {[%clk 0:02:59.2]} 4... d6 {[%clk 0:02:58.2]} 5. O-O {[%clk 0:02:58.9]}
5... O-O {[%clk 0:02:59.1]} 6. Nc3 {[%clk 0:02:58.8]} 6... Nbd7 {[%clk 0:03:00]}
7. e4 {[%clk 0:02:58.2]} 7... e5 {[%clk 0:03:00.9]} 8. Re1 {[%clk 0:02:57.6]}
8... Re8 {[%clk 0:03:01]} 9. h3 {[%clk 0:02:55.1]} 9... c6 {[%clk 0:03:01.3]}
10. a4 {[%clk 0:02:54.9]} 10... Qc7 {[%clk 0:03:01.1]} 11. a5 {[%clk 0:02:51.8]}
11... exd4 {[%clk 0:02:59.4]} 12. Nxd4 {[%clk 0:02:51.4]} 12... Ne5 {[%clk
0:02:58.8]} 13. b3 {[%clk 0:02:31.3]} 13... Ned7 {[%clk 0:02:40.2]} 14. Bb2
{[%clk 0:02:10.8]} 14... Nc5 {[%clk 0:02:40]} 15. Qd2 {[%clk 0:02:03.1]} 15...
Bd7 {[%clk 0:02:36.8]} 16. b4 {[%clk 0:01:36.4]} 16... Ne6 {[%clk 0:02:35.5]}
17. Nxe6 {[%clk 0:01:31.1]} 17... Bxe6 {[%clk 0:02:36.4]} 18. Rad1 {[%clk
0:01:27.4]} 18... Rad8 {[%clk 0:02:36.3]} 19. Ba1 {[%clk 0:01:24]} 19... b6
{[%clk 0:02:36.3]} 20. axb6 {[%clk 0:01:23.7]} 20... Qxb6 {[%clk 0:02:36.1]} 21.
Ne2 {[%clk 0:01:19.1]} 21... d5 {[%clk 0:02:29.8]} 22. exd5 {[%clk 0:01:16.3]}
22... cxd5 {[%clk 0:02:30.7]} 23. Nd4 {[%clk 0:01:12.5]} 23... Ne4 {[%clk
0:02:30.5]} 24. Bxe4 {[%clk 0:00:51.2]} 24... dxe4 {[%clk 0:02:31.4]} 25. Rxe4
{[%clk 0:00:48.4]} 25... Bxh3 {[%clk 0:02:27.9]} 26. Rxe8+ {[%clk 0:00:29.7]}
26... Rxe8 {[%clk 0:02:28.8]} 27. Qf4 {[%clk 0:00:30.3]} 27... Qxb4 {[%clk
0:02:23.6]} 28. c3 {[%clk 0:00:17.2]} 28... Qb7 {[%clk 0:02:18.3]} 29. Qf3
{[%clk 0:00:15.3]} 29... Qc8 {[%clk 0:02:10.6]} 30. Bb2 {[%clk 0:00:13.4]} 30...
Bg4 {[%clk 0:02:11.1]} 31. Qd3 {[%clk 0:00:11.3]} 31... Bxd1 {[%clk 0:02:11.5]}
32. Qxd1 {[%clk 0:00:12.2]} 32... Qc4 {[%clk 0:02:10.3]} 33. Qa1 {[%clk
0:00:11.2]} 33... h5 {[%clk 0:02:05.4]} 34. Qxa7 {[%clk 0:00:10.7]} 34... h4
{[%clk 0:02:06]} 35. Qd7 {[%clk 0:00:09.3]} 35... Re1+ {[%clk 0:02:06.1]} 36.
Kh2 {[%clk 0:00:09.6]} 36... hxg3+ {[%clk 0:02:04.9]} 37. Kxg3 {[%clk
0:00:09.5]} 37... Be5+ {[%clk 0:02:04]} 38. f4 {[%clk 0:00:09.1]} 38... Qd3+
{[%clk 0:02:04.2]} 39. Nf3 {[%clk 0:00:09.3]} 39... Qxd7 {[%clk 0:02:03.9]} 0-1

[Event "Late-Titled-Tuesday-Blitz-August-29-2023"]
[Site "Chess.com"]
[Date "2023.08.29"]
[Round "8"]
[White "ShrookWafa"]
[Black "NMJeevanK"]
[Result "0-1"]
[WhiteElo "2416"]
[BlackElo "2519"]
[TimeControl "180+1"]
[EndTime "15:25:35 PDT"]
[Termination "NMJeevanK won by resignation"]

1. e4 {[%clk 0:03:00]} 1... e5 {[%clk 0:03:00.1]} 2. Nf3 {[%clk 0:02:59.9]} 2...
Nc6 {[%clk 0:03:00.5]} 3. Bb5 {[%clk 0:02:59.6]} 3... a6 {[%clk 0:02:59.7]} 4.
Ba4 {[%clk 0:02:59.6]} 4... Nf6 {[%clk 0:02:57.4]} 5. d4 {[%clk 0:02:58.4]} 5...
b5 {[%clk 0:02:54.3]} 6. dxe5 {[%clk 0:02:58]} 6... Nxe4 {[%clk 0:02:41.4]} 7.
Bb3 {[%clk 0:02:57.6]} 7... Nc5 {[%clk 0:02:41.1]} 8. Bd5 {[%clk 0:02:57.1]}
8... Be7 {[%clk 0:02:37.3]} 9. O-O {[%clk 0:02:51.8]} 9... Bb7 {[%clk
0:02:34.3]} 10. Nc3 {[%clk 0:02:51.6]} 10... O-O {[%clk 0:02:33.5]} 11. Bf4
{[%clk 0:02:51.5]} 11... Ne6 {[%clk 0:02:30.5]} 12. Bg3 {[%clk 0:02:49.4]} 12...
Rb8 {[%clk 0:02:27.1]} 13. Qd2 {[%clk 0:02:48.2]} 13... Na5 {[%clk 0:02:22.7]}
14. Rad1 {[%clk 0:02:40.8]} 14... Bc8 {[%clk 0:01:50]} 15. b3 {[%clk 0:02:35]}
15... c6 {[%clk 0:01:46.6]} 16. Be4 {[%clk 0:02:34.2]} 16... Nb7 {[%clk
0:01:44.2]} 17. Nd4 {[%clk 0:02:28.7]} 17... Nbc5 {[%clk 0:01:38.4]} 18. Bf3
{[%clk 0:02:19.6]} 18... Nxd4 {[%clk 0:01:37.7]} 19. Qxd4 {[%clk 0:02:19.4]}
19... Ne6 {[%clk 0:01:38.4]} 20. Qa7 {[%clk 0:01:57.7]} 20... Bb7 {[%clk
0:01:26.4]} 21. Qe3 {[%clk 0:01:55.8]} 21... Qc7 {[%clk 0:01:15.6]} 22. Ne4
{[%clk 0:01:54.3]} 22... Rbd8 {[%clk 0:01:11.2]} 23. Nd6 {[%clk 0:01:45.1]}
23... Bxd6 {[%clk 0:01:10.1]} 24. exd6 {[%clk 0:01:44.9]} 24... Qa5 {[%clk
0:01:09]} 25. a4 {[%clk 0:01:26.5]} 25... Qb4 {[%clk 0:01:03]} 26. axb5 {[%clk
0:01:25.5]} 26... axb5 {[%clk 0:01:03.3]} 27. Ra1 {[%clk 0:01:21.2]} 27... Ra8
{[%clk 0:01:03.4]} 28. h4 {[%clk 0:01:18.6]} 28... Qd4 {[%clk 0:00:58.7]} 29.
Qe2 {[%clk 0:01:03.2]} 29... Rxa1 {[%clk 0:00:56.9]} 30. Rxa1 {[%clk 0:01:01.3]}
30... Qxa1+ {[%clk 0:00:57.8]} 31. Kh2 {[%clk 0:01:00.9]} 31... Qd4 {[%clk
0:00:55.9]} 0-1

[Event "Late-Titled-Tuesday-Blitz-August-29-2023"]
[Site "Chess.com"]
[Date "2023.08.29"]
[Round "8"]
[White "azikom"]
[Black "simplerXiao"]
[Result "0-1"]
[WhiteElo "2677"]
[BlackElo "2544"]
[TimeControl "180+1"]
[EndTime "15:25:36 PDT"]
[Termination "simplerXiao won by checkmate"]

1. Nf3 {[%clk 0:03:00.8]} 1... d5 {[%clk 0:02:57.6]} 2. c4 {[%clk 0:03:00.5]}
2... d4 {[%clk 0:02:57.4]} 3. b4 {[%clk 0:03:00.2]} 3... f6 {[%clk 0:02:56.8]}
4. e3 {[%clk 0:02:56.7]} 4... e5 {[%clk 0:02:56.7]} 5. exd4 {[%clk 0:02:55]}
5... exd4 {[%clk 0:02:56.4]} 6. c5 {[%clk 0:02:49.6]} 6... a5 {[%clk 0:02:52.3]}
7. Bc4 {[%clk 0:02:36.7]} 7... Qe7+ {[%clk 0:02:43.7]} 8. Kf1 {[%clk 0:02:35.6]}
8... axb4 {[%clk 0:02:43.6]} 9. Qb3 {[%clk 0:02:31]} 9... Nh6 {[%clk 0:02:38]}
10. Nxd4 {[%clk 0:02:31]} 10... Qxc5 {[%clk 0:02:36.1]} 11. Bb2 {[%clk 0:02:26]}
11... Nc6 {[%clk 0:02:31.6]} 12. Ne6 {[%clk 0:02:10.7]} 12... Bxe6 {[%clk
0:02:25.2]} 13. Bxe6 {[%clk 0:02:10.5]} 13... Nd4 {[%clk 0:02:24.8]} 14. Qe3
{[%clk 0:01:47.9]} 14... Nxe6 {[%clk 0:02:21.7]} 15. Qxe6+ {[%clk 0:01:47.6]}
15... Be7 {[%clk 0:02:17.7]} 16. h4 {[%clk 0:01:42.5]} 16... Qd6 {[%clk
0:02:11.8]} 17. Qc4 {[%clk 0:01:31.7]} 17... O-O-O {[%clk 0:02:03.6]} 18. Rh3
{[%clk 0:01:25.4]} 18... Qd5 {[%clk 0:01:54]} 19. Qe2 {[%clk 0:01:24]} 19... Bc5
{[%clk 0:01:52.4]} 20. a3 {[%clk 0:00:59.3]} 20... Rhe8 {[%clk 0:01:46.4]} 21.
Qd1 {[%clk 0:00:59.6]} 21... Qc4+ {[%clk 0:01:35.5]} 22. d3 {[%clk 0:00:56.8]}
22... Qf4 {[%clk 0:01:28.8]} 23. Qf3 {[%clk 0:00:43.5]} 23... Rxd3 {[%clk
0:01:17.2]} 24. Qxf4 {[%clk 0:00:18.8]} 24... Rd1# {[%clk 0:01:16.4]} 0-1

[Event "Late-Titled-Tuesday-Blitz-August-29-2023"]
[Site "Chess.com"]
[Date "2023.08.29"]
[Round "8"]
[White "jinxy2009"]
[Black "WindWhistler11"]
[Result "0-1"]
[WhiteElo "2348"]
[BlackElo "2488"]
[TimeControl "180+1"]
[EndTime "15:25:54 PDT"]
[Termination "WindWhistler11 won by checkmate"]

1. e4 {[%clk 0:03:00.9]} 1... e6 {[%clk 0:02:59.3]} 2. d4 {[%clk 0:02:59.9]}
2... d5 {[%clk 0:02:56.8]} 3. e5 {[%clk 0:02:51]} 3... c5 {[%clk 0:02:52.7]} 4.
c3 {[%clk 0:02:51.6]} 4... Nc6 {[%clk 0:02:40.7]} 5. Nf3 {[%clk 0:02:50.2]} 5...
Bd7 {[%clk 0:02:41.6]} 6. Be2 {[%clk 0:02:49]} 6... Nge7 {[%clk 0:02:42.5]} 7.
O-O {[%clk 0:02:48.3]} 7... cxd4 {[%clk 0:02:42.2]} 8. cxd4 {[%clk 0:02:47.6]}
8... Nf5 {[%clk 0:02:43.1]} 9. Be3 {[%clk 0:02:44.4]} 9... Be7 {[%clk
0:02:39.8]} 10. Nc3 {[%clk 0:02:41.9]} 10... O-O {[%clk 0:02:34.8]} 11. Qd2
{[%clk 0:02:41.9]} 11... f6 {[%clk 0:02:34.3]} 12. Rac1 {[%clk 0:02:35.8]} 12...
fxe5 {[%clk 0:02:27.1]} 13. Nxe5 {[%clk 0:02:31]} 13... Be8 {[%clk 0:02:18.7]}
14. Nxc6 {[%clk 0:02:29.4]} 14... bxc6 {[%clk 0:02:17.3]} 15. Bf4 {[%clk
0:02:30.3]} 15... Bf6 {[%clk 0:02:11]} 16. Be5 {[%clk 0:02:26.7]} 16... Bxe5
{[%clk 0:02:00.3]} 17. dxe5 {[%clk 0:02:27.6]} 17... c5 {[%clk 0:01:57.5]} 18.
Bb5 {[%clk 0:02:06.9]} 18... Bg6 {[%clk 0:01:41]} 19. Bd3 {[%clk 0:01:47]} 19...
Rb8 {[%clk 0:01:24.6]} 20. b3 {[%clk 0:01:44.5]} 20... Nh4 {[%clk 0:01:17.7]}
21. Bxg6 {[%clk 0:01:40]} 21... hxg6 {[%clk 0:01:12.1]} 22. Ne2 {[%clk
0:01:34.5]} 22... Rb4 {[%clk 0:01:02.1]} 23. Rxc5 {[%clk 0:01:26.7]} 23... Rg4
{[%clk 0:00:57.5]} 24. Ng3 {[%clk 0:01:23.6]} 24... d4 {[%clk 0:00:50]} 25. Rc6
{[%clk 0:01:02.2]} 25... Qd5 {[%clk 0:00:35.6]} 26. Ra6 {[%clk 0:00:48.2]} 26...
Qxg2# {[%clk 0:00:31.8]} 0-1

[Event "Late-Titled-Tuesday-Blitz-August-29-2023"]
[Site "Chess.com"]
[Date "2023.08.29"]
[Round "8"]
[White "Petukhov_Dmitry"]
[Black "psychokiller48"]
[Result "0-1"]
[WhiteElo "2520"]
[BlackElo "2682"]
[TimeControl "180+1"]
[EndTime "15:25:58 PDT"]
[Termination "psychokiller48 won by checkmate"]

1. e4 {[%clk 0:03:00]} 1... e5 {[%clk 0:02:59.6]} 2. Nf3 {[%clk 0:02:59.7]} 2...
Nc6 {[%clk 0:03:00.2]} 3. Bb5 {[%clk 0:02:59.9]} 3... a6 {[%clk 0:03:00.3]} 4.
Ba4 {[%clk 0:03:00.1]} 4... Nf6 {[%clk 0:03:00.8]} 5. O-O {[%clk 0:03:00.1]}
5... Be7 {[%clk 0:03:01.1]} 6. Re1 {[%clk 0:02:59.7]} 6... b5 {[%clk 0:03:01.8]}
7. Bb3 {[%clk 0:03:00.6]} 7... O-O {[%clk 0:03:02.6]} 8. h3 {[%clk 0:03:00.5]}
8... Bb7 {[%clk 0:03:01.4]} 9. c3 {[%clk 0:03:00.6]} 9... d5 {[%clk 0:03:01.3]}
10. exd5 {[%clk 0:03:01.5]} 10... Nxd5 {[%clk 0:03:02.2]} 11. d4 {[%clk
0:03:01.9]} 11... exd4 {[%clk 0:02:56.7]} 12. Nxd4 {[%clk 0:03:02.8]} 12... Nxd4
{[%clk 0:02:55.7]} 13. cxd4 {[%clk 0:03:03.7]} 13... c5 {[%clk 0:02:48.6]} 14.
dxc5 {[%clk 0:03:02]} 14... Bxc5 {[%clk 0:02:45]} 15. Qf3 {[%clk 0:02:46.7]}
15... Qb6 {[%clk 0:02:38.8]} 16. Bxd5 {[%clk 0:02:39.6]} 16... Bxd5 {[%clk
0:02:38.2]} 17. Qxd5 {[%clk 0:02:40.5]} 17... Bxf2+ {[%clk 0:02:38.3]} 18. Kf1
{[%clk 0:02:41.4]} 18... Bxe1 {[%clk 0:02:38.2]} 19. Qf3 {[%clk 0:02:23.5]}
19... Rfe8 {[%clk 0:02:32]} 20. Nc3 {[%clk 0:02:18.9]} 20... Bxc3 {[%clk
0:02:23.9]} 21. bxc3 {[%clk 0:02:19.8]} 21... Rad8 {[%clk 0:02:20.5]} 22. Bg5
{[%clk 0:02:18.8]} 22... Rd6 {[%clk 0:02:11.6]} 23. Bh4 {[%clk 0:02:08.5]} 23...
h6 {[%clk 0:02:08.2]} 24. Bf2 {[%clk 0:02:07.8]} 24... Qc6 {[%clk 0:02:06.8]}
25. Qg3 {[%clk 0:01:59.2]} 25... Rg6 {[%clk 0:02:03.1]} 26. Qh2 {[%clk
0:01:59.3]} 26... Qxc3 {[%clk 0:02:02.7]} 27. Rd1 {[%clk 0:01:57]} 27... Rf6
{[%clk 0:01:51.5]} 28. g4 {[%clk 0:01:32.8]} 28... Qc2 {[%clk 0:01:48.4]} 29.
Rd4 {[%clk 0:01:19.5]} 29... Re2 {[%clk 0:01:33.6]} 30. Rf4 {[%clk 0:01:04]}
30... Qd1+ {[%clk 0:01:08.3]} 31. Kg2 {[%clk 0:01:01.4]} 31... Qd5+ {[%clk
0:01:04.6]} 32. Kf1 {[%clk 0:00:59.3]} 32... Rxa2 {[%clk 0:00:56.9]} 33. Rxf6
{[%clk 0:00:55]} 33... gxf6 {[%clk 0:00:57.8]} 34. Qf4 {[%clk 0:00:55.2]} 34...
Qh1+ {[%clk 0:00:54.7]} 35. Bg1 {[%clk 0:00:55]} 35... Qg2+ {[%clk 0:00:54.8]}
36. Ke1 {[%clk 0:00:54.6]} 36... Qe2# {[%clk 0:00:55.1]} 0-1

[Event "Late-Titled-Tuesday-Blitz-August-29-2023"]
[Site "Chess.com"]
[Date "2023.08.29"]
[Round "8"]
[White "grzechu96"]
[Black "colegiodemadrid"]
[Result "0-1"]
[WhiteElo "2658"]
[BlackElo "2457"]
[TimeControl "180+1"]
[EndTime "15:26:04 PDT"]
[Termination "colegiodemadrid won by resignation"]

1. e4 {[%clk 0:03:00.9]} 1... e5 {[%clk 0:02:57.8]} 2. f4 {[%clk 0:03:01.1]}
2... d5 {[%clk 0:02:55.6]} 3. exd5 {[%clk 0:02:59]} 3... exf4 {[%clk 0:02:55.9]}
4. Nf3 {[%clk 0:02:59.4]} 4... Nf6 {[%clk 0:02:50]} 5. d4 {[%clk 0:02:59.5]}
5... Nxd5 {[%clk 0:02:43]} 6. c4 {[%clk 0:02:59.8]} 6... Bb4+ {[%clk 0:02:31.6]}
7. Bd2 {[%clk 0:02:55.9]} 7... Ne3 {[%clk 0:02:28]} 8. Qb3 {[%clk 0:02:56.1]}
8... Bxd2+ {[%clk 0:02:27]} 9. Nbxd2 {[%clk 0:02:57]} 9... O-O {[%clk
0:02:23.5]} 10. Bd3 {[%clk 0:02:55.2]} 10... Nxg2+ {[%clk 0:02:18.6]} 11. Kd1
{[%clk 0:02:55.1]} 11... Ne3+ {[%clk 0:02:18.8]} 12. Kc1 {[%clk 0:02:55.6]}
12... a5 {[%clk 0:02:13.3]} 13. a4 {[%clk 0:02:55.4]} 13... Nc6 {[%clk
0:02:12.6]} 14. Rg1 {[%clk 0:02:52.7]} 14... Nb4 {[%clk 0:02:11.9]} 15. Be4
{[%clk 0:02:53]} 15... f5 {[%clk 0:01:57.4]} 16. Bd3 {[%clk 0:02:50.8]} 16... c5
{[%clk 0:01:49]} 17. d5 {[%clk 0:02:49.5]} 17... Qf6 {[%clk 0:01:42.4]} 18. Ra3
{[%clk 0:02:48.2]} 18... Ra6 {[%clk 0:01:38.7]} 19. Kb1 {[%clk 0:02:46]} 19...
Rb6 {[%clk 0:01:39]} 20. Qc3 {[%clk 0:02:46]} 20... Nxd3 {[%clk 0:01:17.1]} 21.
Qxf6 {[%clk 0:02:45.8]} 21... Rfxf6 {[%clk 0:01:15.9]} 22. Rxd3 {[%clk
0:02:46.4]} 22... Bd7 {[%clk 0:01:16.5]} 23. Ne5 {[%clk 0:02:46]} 23... Bxa4
{[%clk 0:01:14.7]} 24. Ka2 {[%clk 0:02:41.8]} 24... Be8 {[%clk 0:01:03.9]} 25.
Nf1 {[%clk 0:02:40.8]} 25... Nc2 {[%clk 0:00:57.5]} 26. Rf3 {[%clk 0:02:39]}
26... Nd4 {[%clk 0:00:47.5]} 27. Rf2 {[%clk 0:02:38]} 27... Rb4 {[%clk
0:00:42.3]} 28. Nd2 {[%clk 0:02:37.4]} 28... Rfb6 {[%clk 0:00:35.6]} 29. Nd3
{[%clk 0:02:37.2]} 29... Ra4+ {[%clk 0:00:31.8]} 30. Kb1 {[%clk 0:02:37.4]}
30... Ra3 {[%clk 0:00:22.5]} 31. Nxc5 {[%clk 0:02:36.4]} 31... Re3 {[%clk
0:00:18.2]} 32. Rxf4 {[%clk 0:02:28.6]} 32... Ne2 {[%clk 0:00:17.5]} 33. Re1
{[%clk 0:02:21.5]} 33... Nc3+ {[%clk 0:00:16.4]} 34. Kc2 {[%clk 0:02:22.2]}
34... Rxe1 {[%clk 0:00:15.6]} 35. Kxc3 {[%clk 0:02:23]} 35... Re3+ {[%clk
0:00:15]} 36. Kd4 {[%clk 0:02:22.9]} 36... Re2 {[%clk 0:00:15.2]} 37. Nf3 {[%clk
0:02:18.1]} 37... Rbxb2 {[%clk 0:00:14.3]} 38. Ne6 {[%clk 0:02:18.5]} 38... Bf7
{[%clk 0:00:13.7]} 39. Nfg5 {[%clk 0:02:14.5]} 39... Bxe6 {[%clk 0:00:12]} 40.
Nxe6 {[%clk 0:02:14.7]} 40... Rbd2+ {[%clk 0:00:12.1]} 41. Kc5 {[%clk 0:02:14]}
41... g6 {[%clk 0:00:12.4]} 42. Nd4 {[%clk 0:02:12.5]} 42... Re8 {[%clk
0:00:11]} 43. d6 {[%clk 0:02:11.7]} 43... Rc8+ {[%clk 0:00:09.3]} 44. Kb6 {[%clk
0:02:12.2]} 44... Rxc4 {[%clk 0:00:08.4]} 45. d7 {[%clk 0:02:02.6]} 45... Rcxd4
{[%clk 0:00:08.7]} 46. d8=Q+ {[%clk 0:01:59.1]} 46... Rxd8 {[%clk 0:00:08.6]}
47. Rc4 {[%clk 0:02:00]} 47... R8d6+ {[%clk 0:00:08.7]} 48. Kc7 {[%clk
0:02:00.5]} 48... Rd7+ {[%clk 0:00:09.1]} 49. Kb8 {[%clk 0:02:00.6]} 49... R2d6
{[%clk 0:00:09.8]} 50. Rc8+ {[%clk 0:01:59.8]} 50... Rd8 {[%clk 0:00:09.8]} 51.
Kc7 {[%clk 0:02:00.7]} 51... Rd7+ {[%clk 0:00:10.3]} 52. Kb6 {[%clk 0:02:00.3]}
52... Rxc8 {[%clk 0:00:11.2]} 0-1

[Event "Late-Titled-Tuesday-Blitz-August-29-2023"]
[Site "Chess.com"]
[Date "2023.08.29"]
[Round "8"]
[White "superfast64"]
[Black "Cluke86"]
[Result "1-0"]
[WhiteElo "2465"]
[BlackElo "2283"]
[TimeControl "180+1"]
[EndTime "15:26:17 PDT"]
[Termination "superfast64 won on time"]

1. d4 {[%clk 0:03:00.9]} 1... Nf6 {[%clk 0:02:57.9]} 2. Bf4 {[%clk 0:03:01.3]}
2... d6 {[%clk 0:02:56.4]} 3. e3 {[%clk 0:03:01.6]} 3... Nbd7 {[%clk 0:02:56]}
4. Nf3 {[%clk 0:03:02]} 4... g6 {[%clk 0:02:55.9]} 5. Bc4 {[%clk 0:03:02]} 5...
Bg7 {[%clk 0:02:55.7]} 6. Bxf7+ {[%clk 0:03:02.4]} 6... Kxf7 {[%clk 0:02:53.6]}
7. Ng5+ {[%clk 0:03:03]} 7... Kg8 {[%clk 0:02:53.6]} 8. Ne6 {[%clk 0:03:03.9]}
8... Qe8 {[%clk 0:02:53.3]} 9. Nxc7 {[%clk 0:03:03.7]} 9... Qd8 {[%clk
0:02:51.2]} 10. Nxa8 {[%clk 0:03:04.1]} 10... b5 {[%clk 0:02:48.5]} 11. Qf3
{[%clk 0:03:03.4]} 11... e5 {[%clk 0:02:33.3]} 12. dxe5 {[%clk 0:02:58]} 12...
dxe5 {[%clk 0:02:34.2]} 13. Bg3 {[%clk 0:02:58]} 13... Ba6 {[%clk 0:02:27]} 14.
Qc6 {[%clk 0:02:57.1]} 14... Qa5+ {[%clk 0:02:15.4]} 15. c3 {[%clk 0:02:50.3]}
15... b4 {[%clk 0:02:01.5]} 16. Nc7 {[%clk 0:02:40.3]} 16... bxc3 {[%clk
0:01:54.6]} 17. Nxc3 {[%clk 0:02:33.3]} 17... Bd3 {[%clk 0:01:46.4]} 18. Qe6+
{[%clk 0:02:22]} 18... Kf8 {[%clk 0:01:45.6]} 19. Nd5 {[%clk 0:02:22.3]} 19...
Nxd5 {[%clk 0:01:20.3]} 20. Qxd5 {[%clk 0:02:23.2]} 20... Qxd5 {[%clk
0:01:13.2]} 21. Nxd5 {[%clk 0:02:24.1]} 21... e4 {[%clk 0:01:12.8]} 22. Nc3
{[%clk 0:02:01.5]} 22... Ke7 {[%clk 0:01:07]} 23. f3 {[%clk 0:01:54.9]} 23...
Nc5 {[%clk 0:01:02.4]} 24. Kf2 {[%clk 0:01:53.3]} 24... h5 {[%clk 0:00:55.9]}
25. h4 {[%clk 0:01:41.6]} 25... Ke6 {[%clk 0:00:50]} 26. Rhc1 {[%clk 0:01:32.4]}
26... Rf8 {[%clk 0:00:36.2]} 27. Bf4 {[%clk 0:01:23]} 27... Bf6 {[%clk 0:00:28]}
28. g3 {[%clk 0:01:22.8]} 28... exf3 {[%clk 0:00:19.1]} 29. Kxf3 {[%clk
0:01:23.7]} 29... Bxc3 {[%clk 0:00:15.4]} 30. Rxc3 {[%clk 0:01:22.1]} 30... Be4+
{[%clk 0:00:16]} 31. Ke2 {[%clk 0:01:21.2]} 31... Na4 {[%clk 0:00:12.1]} 32. Rb3
{[%clk 0:01:19.4]} 32... Rc8 {[%clk 0:00:11.5]} 33. Rd1 {[%clk 0:01:16.1]} 33...
Nc5 {[%clk 0:00:08]} 34. Rc3 {[%clk 0:01:15.5]} 34... Rc6 {[%clk 0:00:06.7]} 35.
Rdc1 {[%clk 0:01:15.5]} 35... Kd5 {[%clk 0:00:03.9]} 36. b4 {[%clk 0:01:14.2]}
1-0